bitfinex-derivatives/quotes_ETHF0:USTF0_20250524
["timestamp","ask_amount","ask_price","bid_price","bid_amount"]
[1748081060087,6.19448202,2555.9,2555.8,0.78229]
[1748081060288,24.58674202,2555.9,2555.8,0.78229]
[1748081060489,23.80448202,2555.9,2555.8,0.78229]
[1748081061290,21.4688,2555.9,2555.8,0.78229]
[1748081061695,4.83446293,2555.9,2555.8,0.78229]
[1748081061889,22.44446293,2555.9,2555.8,0.78229]
[1748081065799,22.25106,2555.9,2555.8,0.78229]
[1748081065991,22.25106,2555.9,2555.8,0.6867]
[1748081066994,23.55416,2555.9,2555.8,0.6867]
[1748081067195,23.55416,2555.9,2555.8,2.87779]
[1748081067697,23.55416,2555.9,2555.8,2.0955]
[1748081068895,23.55416,2555.9,2555.8,2.87779]
[1748081070396,23.55416,2555.9,2555.8,2.0955]
[1748081070597,22.25106,2555.9,2555.8,2.87779]
[1748081072596,22.25006,2555.9,2555.8,2.87779]
[1748081072798,22.25006,2555.9,2555.8,2.0955]
[1748081074499,22.25006,2555.9,2555.8,2.87779]
[1748081075094,24.58574202,2555.9,2555.8,2.87779]
[1748081075299,3.76894202,2555.9,2555.8,2.95328626]
[1748081075499,21.37794202,2555.9,2555.8,2.95328626]
[1748081076403,3.11794202,2555.9,2555.8,2.95328626]
[1748081076604,20.85166392,2555.9,2555.8,2.95328626]
[1748081076810,20.06940392,2555.9,2555.8,2.95328626]
[1748081077807,17.7337219,2555.9,2555.8,2.95328626]
[1748081078702,0.1247219,2555.9,2555.8,2.95328626]
[1748081078902,17.7337219,2555.9,2555.8,2.95328626]
[1748081079198,0.1247219,2555.9,2555.8,2.95328626]
[1748081081013,5.898,2556.0,2555.9,0.78226]
[1748081081308,5.898,2556.0,2555.9,2.81596]
[1748081082610,19.36687293,2556.1,2556.0,0.78223]
[1748081082810,19.36687293,2556.1,2556.0,2.17063]
[1748081083111,0.97566293,2556.1,2556.0,2.17063]
[1748081083417,19.36586293,2556.1,2556.0,1.3884]
[1748081084313,19.36586293,2556.1,2556.0,2.17063]
[1748081084914,21.70762236,2556.1,2556.0,2.17063]
[1748081085613,3.12395943,2556.1,2556.0,2.17063]
[1748081085814,20.73195943,2556.1,2556.0,0.92355953]
[1748081088015,20.8566645,2556.1,2556.0,0.92355953]
[1748081089815,18.51490507,2556.1,2556.0,0.14132953]
[1748081090419,18.51490507,2556.1,2556.0,0.21682579]
[1748081090823,0.90690507,2556.1,2556.0,0.21682579]
[1748081091017,18.51390507,2556.1,2556.0,0.21682579]
[1748081091515,19.04195595,2556.1,2556.0,0.21682579]
[1748081092217,19.04195595,2556.1,2556.0,0.99905579]
[1748081092417,19.04195595,2556.1,2556.0,0.21682579]
[1748081094215,19.04195595,2556.1,2556.0,0.99905579]
[1748081095716,18.3892,2556.1,2556.0,0.21682579]
[1748081097221,17.607,2556.1,2556.0,0.99905579]
[1748081097422,18.3892,2556.1,2556.0,0.07549626]
[1748081097718,19.6939,2556.1,2556.0,0.07549626]
[1748081098322,19.6939,2556.1,2556.0,0.85772626]
[1748081098819,19.6939,2556.1,2556.0,0.07549626]
[1748081099117,20.3359,2556.1,2556.0,0.07549626]
[1748081099513,20.46060828,2556.1,2556.0,0.07549626]
[1748081100120,22.80236771,2556.1,2556.0,0.07549626]
[1748081101222,0.78235,2555.6,2555.5,1.47922678]
[1748081101519,0.78235,2555.6,2555.5,0.69685678]
[1748081102617,2.07135,2555.6,2555.5,0.69685678]
[1748081102818,3.8908,2555.8,2555.5,0.69685678]
[1748081103124,3.80772994,2555.8,2555.7,0.78232]
[1748081103622,6.39825722,2555.8,2555.7,0.78232]
[1748081104618,3.27352728,2555.8,2555.7,0.78232]
[1748081106014,1.30152728,2555.8,2555.7,1.43852]
[1748081107225,18.58793112,2555.9,2555.8,0.78229]
[1748081107427,18.58793112,2555.9,2555.8,2.10479]
[1748081107623,18.58793112,2555.9,2555.8,2.74239]
[1748081107923,0.97993112,2555.9,2555.8,2.74239]
[1748081108925,18.58793112,2555.9,2555.8,2.74239]
[1748081109129,19.37019112,2555.9,2555.8,2.74239]
[1748081110029,0.78226,2555.9,2555.8,2.74239]
[1748081112725,0.97993112,2556.0,2555.9,0.78226]
[1748081113027,18.58793112,2556.0,2555.9,2.11016]
[1748081113225,19.37016112,2556.0,2555.9,1.3279]
[1748081113438,19.37016112,2556.0,2555.9,2.11016]
[1748081115333,18.58793112,2556.0,2555.9,2.11016]
[1748081115532,19.37016112,2556.0,2555.9,2.11016]
[1748081117438,18.58793112,2556.0,2555.9,2.11016]
[1748081117737,18.51493853,2556.0,2555.9,2.11016]
[1748081118633,18.51493853,2556.0,2555.9,0.78226]
[1748081118834,19.90013853,2556.0,2555.9,0.78226]
[1748081119827,19.90013853,2556.0,2555.9,2.07306]
[1748081120830,19.90013853,2556.0,2555.9,2.14855626]
[1748081123139,0.90693853,2556.0,2555.9,2.14855626]
[1748081123337,17.73170853,2556.0,2555.9,2.14855626]
[1748081124239,18.51393853,2556.0,2555.9,2.14855626]
[1748081125238,0.12470853,2556.0,2555.9,2.14855626]
[1748081129045,0.6534357,2556.0,2555.9,2.14855626]
[1748081130340,0.6534357,2556.0,2555.9,0.07549626]
[1748081130341,1.4356657,2556.0,2555.9,0.07549626]
[1748081130644,4.1356657,2556.0,2555.9,0.07549626]
[1748081132344,4.1356657,2556.0,2555.8,0.78229]
[1748081132345,0.78229,2555.8,2555.7,1.9769]
[1748081132536,4.5483,2555.9,2555.7,0.78232]
[1748081132737,1.3405,2555.8,2555.7,0.78232]
[1748081134446,18.38929,2555.8,2555.7,1.3154]
[1748081134643,17.607,2555.8,2555.7,2.09769]
[1748081135347,18.38929,2555.8,2555.7,2.09769]
[1748081135545,19.75469,2555.8,2555.7,1.3154]
[1748081136348,18.9724,2555.8,2555.7,2.09772]
[1748081137349,17.607,2555.8,2555.7,2.09772]
[1748081138045,19.94923838,2555.8,2555.7,2.09772]
[1748081138849,2.34223838,2555.8,2555.7,2.09772]
[1748081139051,17.607,2555.8,2555.7,2.09772]
[1748081139952,18.7118444,2555.8,2555.7,2.09772]
[1748081143844,18.2601287,2555.8,2555.7,2.09772]
[1748081148860,19.0424187,2555.8,2555.7,2.09772]
[1748081149060,18.2601287,2555.8,2555.7,2.09772]
[1748081149359,18.2601287,2555.8,2555.7,2.17321626]
[1748081150262,19.0424187,2555.8,2555.7,1.39089626]
[1748081150558,19.0424187,2555.8,2555.7,0.07549626]
[1748081150758,19.6844187,2555.8,2555.7,0.07549626]
[1748081150961,19.6844187,2555.8,2555.7,0.85781626]
[1748081151566,24.6844187,2555.8,2555.7,0.07549626]
[1748081151969,26.0800187,2555.8,2555.7,0.07549626]
[1748081152270,25.55160495,2555.8,2555.7,0.07549626]
[1748081153871,0.78244,2555.4,2555.3,0.78243]
[1748081154274,0.78244,2555.3,2555.2,2.80656]
[1748081154569,19.77294,2555.3,2555.2,2.80656]
[1748081154770,19.77294,2555.3,2555.2,0.78246]
[1748081155075,18.9905,2555.3,2555.2,0.78246]
[1748081155564,18.9905,2555.3,2555.0,4.57685678]
[1748081155565,0.7825,2555.1,2555.0,4.57685678]
[1748081155763,0.7825,2555.1,2555.0,0.69685678]
[1748081155969,6.6805,2555.1,2555.0,0.69685678]
[1748081156563,6.6805,2555.1,2554.9,2.15164]
[1748081156564,0.78254,2555.0,2554.9,2.15164]
[1748081156766,2.08354,2555.0,2554.9,1.3691]
[1748081156975,2.76234,2555.0,2554.9,1.3691]
[1748081157164,0.78259,2554.9,2554.7,3.99627682]
[1748081157365,2.08359,2554.9,2554.7,5.36537682]
[1748081157564,2.08359,2554.9,2554.8,0.7826]
[1748081157767,0.7826,2554.8,2554.7,5.36537682]
[1748081157965,18.91,2554.9,2554.7,4.58276682]
[1748081158464,0.7826,2554.8,2554.7,5.36538682]
[1748081158665,18.91,2554.9,2554.7,4.58276682]
[1748081158666,19.69259,2554.9,2554.7,4.58276682]
[1748081158865,18.91,2554.9,2554.7,4.58276682]
[1748081159064,17.61,2554.8,2554.7,4.58276682]
[1748081159266,17.61,2554.8,2554.7,0.00586682]
[1748081159267,19.7385,2554.8,2554.7,0.00586682]
[1748081160378,0.78275,2554.3,2554.2,0.69685678]
[1748081160574,18.39275,2554.3,2554.2,0.69685678]
[1748081161073,0.78278,2554.2,2554.0,3.99064]
[1748081161271,2.12868,2554.2,2554.0,5.29544]
[1748081161569,0.78281,2554.1,2554.0,4.5126]
[1748081161768,0.78286,2554.0,2553.8,2.14825682]
[1748081162073,1.44596,2554.0,2553.8,2.14825682]
[1748081162272,0.78287,2553.9,2553.8,0.00586682]
[1748081162473,2.19137,2553.9,2553.8,0.00586682]
[1748081164473,5.39917,2553.9,2553.8,0.00586682]
[1748081164673,5.39917,2553.9,2553.8,0.08136308]
[1748081166068,1.4085,2553.9,2553.8,0.86426308]
[1748081166271,5.898,2554.1,2554.0,0.78284]
[1748081166470,3.99055,2554.3,2554.2,0.78278]
[1748081166677,20.8238,2554.3,2554.0,0.78283]
[1748081166865,0.78278,2554.2,2554.1,1.3934]
[1748081167478,2.17378,2554.2,2554.1,1.3934]
[1748081169569,1.391,2554.2,2554.1,1.3934]
[1748081169768,0.00586682,2554.4,2554.3,0.78275]
[1748081170073,6.82e-06,2554.4,2554.3,3.99055]
[1748081170274,6.82e-06,2554.4,2554.3,8.99055]
[1748081170471,4.10486088,2554.7,2554.6,0.78266]
[1748081170670,1.30152728,2554.9,2554.8,0.7826]
[1748081170875,1.63108119,2555.2,2555.1,0.7825]
[1748081171076,1.63108119,2555.2,2555.1,3.9903]
[1748081171574,1.63108119,2555.2,2555.1,5.3238]
[1748081173578,3.26229743,2555.7,2555.1,4.5413]
[1748081173779,17.616,2555.6,2555.5,0.78237]
[1748081173979,1.95729743,2555.7,2555.6,0.78235]
[1748081174179,19.57329743,2555.7,2555.1,5.20366682]
[1748081174478,1.95729743,2555.7,2555.1,5.20366682]
[1748081174681,1.95729743,2555.7,2555.6,3.99015]
[1748081176276,1.95729743,2555.7,2555.6,0.78235]
[1748081176474,1.95729743,2555.7,2555.5,2.81087]
[1748081176676,0.78229,2555.8,2555.5,2.81087]
[1748081176980,17.616,2555.9,2555.6,0.78235]
[1748081177181,17.616,2555.9,2555.7,1.3985]
[1748081177773,18.39827,2555.9,2555.7,2.18082]
[1748081178377,17.616,2555.9,2555.8,0.78229]
[1748081178579,17.616,2555.9,2555.8,2.18079]
[1748081178974,18.39826,2555.9,2555.8,1.3985]
[1748081179981,18.39826,2555.9,2555.8,2.18079]
[1748081179982,17.612,2555.9,2555.8,2.18079]
[1748081180278,18.39426,2555.9,2555.8,2.18079]
[1748081180483,18.39426,2555.9,2555.8,1.3985]
[1748081180977,18.39426,2555.9,2555.8,2.18079]
[1748081181283,18.39426,2555.9,2555.8,1.3985]
[1748081181582,18.39426,2555.9,2555.8,2.18079]
[1748081182081,0.78229,2555.8,2555.7,0.07549626]
[1748081182381,2.13689,2555.8,2555.7,0.07549626]
[1748081182575,3.47609,2555.8,2555.7,0.07549626]
[1748081183486,0.78247,2555.2,2555.1,0.00586682]
[1748081183682,18.39347,2555.2,2555.1,0.00586682]
[1748081184084,21.12867,2555.2,2555.1,0.00586682]
[1748081187286,0.78257,2554.9,2554.8,2.16578]
[1748081187481,0.78257,2554.9,2554.8,1.3832]
[1748081187987,0.78257,2554.9,2554.8,2.1658]
[1748081188987,0.78257,2554.9,2554.8,1.3832]
[1748081189373,2.15317,2554.9,2554.8,1.3832]
[1748081189585,0.78263,2554.7,2554.6,0.00586682]
[1748081189882,3.99043,2554.7,2554.6,0.00586682]
[1748081190688,0.78278,2554.2,2554.1,1.2818]
[1748081190893,18.39578,2554.2,2554.1,1.2818]
[1748081191187,17.613,2554.2,2554.1,2.06461]
[1748081191383,0.30802464,2554.9,2554.8,0.78257]
[1748081191384,0.78257,2554.9,2554.8,0.78257]
[1748081191590,17.613,2554.9,2554.8,0.78257]
[1748081192083,18.39557,2554.9,2554.8,0.78257]
[1748081192283,17.613,2554.9,2554.6,2.73086682]
[1748081192587,2.16261,2554.8,2554.7,0.78263]
[1748081192787,2.16261,2554.8,2554.7,2.17263]
[1748081193287,18.39557,2554.9,2554.8,0.7826]
[1748081193584,18.39557,2554.9,2554.8,2.1726]
[1748081194088,18.39557,2554.9,2554.8,1.39]
[1748081195090,18.39557,2554.9,2554.8,1.46549626]
[1748081195692,18.39557,2554.9,2554.8,0.07549626]
[1748081196793,17.613,2554.9,2554.8,0.85809626]
[1748081197192,3.21366682,2555.1,2554.8,0.07549626]
[1748081197492,20.82866682,2555.1,2555.0,0.78254]
[1748081198888,0.00586682,2555.1,2555.0,0.78254]
[1748081199192,17.62086682,2555.1,2555.0,0.78254]
[1748081199882,0.00586682,2555.1,2555.0,0.78254]
[1748081201690,3.2078,2555.7,2555.0,0.78254]
[1748081201895,17.614,2555.7,2555.4,3.2078]
[1748081202090,17.614,2555.7,2555.6,0.78235]
[1748081202291,2.87985,2556.0,2555.5,17.4533]
[1748081202496,0.78225,2556.0,2555.9,0.78226]
[1748081202697,18.39625,2556.0,2555.9,0.78226]
[1748081202997,18.39625,2556.0,2555.8,0.78227]
[1748081203197,18.39625,2556.0,2555.9,1.3]
[1748081204199,18.39625,2556.0,2555.9,2.08226]
[1748081204995,9.11166682,2556.2,2556.0,0.78222]
[1748081205197,17.613,2556.1,2556.0,2.10393]
[1748081205501,0.78232,2555.7,2555.6,0.6857]
[1748081205691,3.99012,2555.7,2555.6,2.0074]
[1748081206094,0.78232,2555.7,2555.6,2.0074]
[1748081206503,0.78232,2555.7,2555.6,2.78975]
[1748081207207,0.78232,2555.7,2555.6,2.0074]
[1748081207398,0.78232,2555.7,2555.6,1.3217]
[1748081208502,0.78244,2555.4,2555.3,0.78244]
[1748081208702,18.39344,2555.4,2555.3,0.78244]
[1748081209397,0.78244,2555.3,2555.2,1.3761]
[1748081209603,18.39343,2555.4,2555.2,1.3761]
[1748081209806,18.39343,2555.4,2555.3,1.3375]
[1748081211304,18.39343,2555.4,2555.3,2.11994]
[1748081212295,17.611,2555.4,2555.3,2.11994]
[1748081214104,18.39341,2555.4,2555.3,2.11994]
[1748081216007,3.8718,2555.7,2555.3,1.3375]
[1748081216312,3.8718,2555.7,2555.6,0.78235]
[1748081216313,3.2078,2555.7,2555.6,0.78235]
[1748081216507,3.99012,2555.7,2555.6,0.85784626]
[1748081216708,3.99012,2555.7,2555.6,0.07549626]
[1748081217011,5.39112,2555.7,2555.6,0.07549626]
[1748081218112,5.39112,2555.7,2555.6,0.85784626]
[1748081219312,5.39112,2555.7,2555.6,0.07549626]
[1748081222508,7.71293475,2555.7,2555.6,0.07549626]
[1748081224312,0.78259,2554.9,2554.7,20.77535678]
[1748081224519,18.39255,2555.0,2554.9,0.78257]
[1748081226021,17.61,2555.0,2554.9,0.78257]
[1748081226922,2.32181475,2555.5,2555.4,0.78241]
[1748081227123,2.32181475,2555.5,2555.4,3.99021]
[1748081227418,2.32181475,2555.5,2555.4,8.99021]
[1748081227619,3.0976927,2555.8,2555.7,0.78232]
[1748081227811,17.612,2556.0,2555.7,3.2078]
[1748081228009,2.07997396,2555.9,2555.8,1.3329]
[1748081228211,3.46677396,2555.9,2555.8,1.3329]
[1748081228815,3.46677396,2555.9,2555.8,2.11519]
[1748081229224,2.68451396,2555.9,2555.8,2.11519]
[1748081229722,3.46677396,2555.9,2555.8,2.11519]
[1748081231425,2.16906,2555.9,2555.8,2.11519]
[1748081231625,2.16906,2555.9,2555.8,1.3329]
[1748081231822,0.78232,2555.7,2555.6,0.07549626]
[1748081232320,3.99012,2555.7,2555.6,0.07549626]
[1748081232621,16.28872,2555.7,2555.6,1e-08]
[1748081234521,0.7825,2555.1,2555.0,2.07003]
[1748081234721,18.3925,2555.1,2555.0,2.07003]
[1748081235624,17.61,2555.1,2555.0,2.07003]
[1748081235924,18.3925,2555.1,2555.0,1.2875]
[1748081236315,17.61,2555.1,2555.0,2.07004]
[1748081237321,0.7825,2555.1,2555.0,1.2875]
[1748081237826,18.3935,2555.1,2555.0,1.2875]
[1748081239825,18.3935,2555.1,2555.0,1.36299626]
[1748081240019,18.3935,2555.1,2555.0,2.14553626]
[1748081240220,19.7927,2555.1,2555.0,2.14553626]
[1748081243520,0.78249,2555.2,2555.0,2.14553626]
[1748081243726,17.612,2555.1,2555.0,2.14553626]
[1748081244232,0.97582377,2555.5,2555.4,0.78241]
[1748081245830,0.97582377,2555.5,2555.4,3.99021]
[1748081246627,1.75820377,2555.5,2555.4,3.2078]
[1748081246931,1.75820377,2555.5,2555.4,0.78241]
[1748081246932,0.7824,2555.5,2555.4,0.78241]
[1748081247230,0.7824,2555.5,2555.4,2.10801]
[1748081247429,0.7824,2555.5,2555.4,1.3256]
[1748081247932,1.4428,2555.5,2555.4,1.3256]
[1748081248225,0.78244,2555.3,2555.2,0.78247]
[1748081248634,0.78243,2555.4,2555.2,0.78247]
[1748081248833,0.78243,2555.4,2555.3,1.3256]
[1748081249025,0.78243,2555.4,2555.3,2.10804]
[1748081249534,2.8321,2555.5,2555.3,2.10804]
[1748081249734,2.8321,2555.5,2555.4,0.78241]
[1748081249936,2.8321,2555.5,2555.4,2.17701]
[1748081252237,0.7825,2555.2,2555.0,0.07549626]
[1748081252537,17.612,2555.1,2555.0,2.25260626]
[1748081253033,17.612,2555.1,2555.0,1.47009626]
[1748081253237,18.3945,2555.1,2555.0,2.25263626]
[1748081253438,17.612,2555.1,2555.0,2.25263626]
[1748081253829,3.2078,2555.3,2555.2,0.78247]
[1748081254038,3.11529547,2555.8,2555.6,0.78235]
[1748081254341,19.37014377,2555.7,2555.6,0.78235]
[1748081255138,0.78235,2555.6,2555.5,2.07405]
[1748081255434,0.78235,2555.6,2555.5,1.2917]
[1748081255941,22.57796377,2555.7,2555.6,0.78235]
[1748081256237,21.60214,2555.7,2555.6,0.78235]
[1748081256442,0.78235,2555.6,2555.5,2.07406]
[1748081257437,17.612,2555.6,2555.5,1.2917]
[1748081257937,17.612,2555.6,2555.5,2.07408]
[1748081258334,18.39435,2555.6,2555.5,2.07408]
[1748081259730,18.39435,2555.6,2555.5,1.2917]
[1748081260139,18.39435,2555.6,2555.5,2.07408]
[1748081261746,17.612,2555.6,2555.2,3.2078]
[1748081262045,0.78244,2555.3,2555.2,1.288]
[1748081262642,0.78247,2555.2,2555.1,0.69583585]
[1748081263046,0.7825,2555.1,2555.0,0.85802626]
[1748081263941,0.7825,2555.1,2555.0,0.07549626]
[1748081264143,3.9903,2555.1,2555.0,0.07549626]
[1748081264547,0.7826,2554.8,2554.7,0.69583585]
[1748081264845,21.6014,2554.8,2554.7,0.69583585]
[1748081265440,47.9954,2554.8,2554.7,0.69583585]
[1748081265848,48.682,2554.8,2554.7,0.69583585]
[1748081266146,48.682,2554.8,2554.6,0.93399012]
[1748081266147,0.78263,2554.7,2554.6,0.00586682]
[1748081266346,2.14523,2554.7,2554.6,0.00586682]
[1748081269948,2.27002639,2554.7,2554.6,0.00586682]
[1748081270352,2.27002639,2554.7,2554.6,0.08136308]
[1748081271048,8.16802639,2554.7,2554.6,0.08136308]
[1748081272553,41.28402639,2554.7,2554.6,0.08136308]
[1748081274052,8.04323,2554.7,2554.6,0.08136308]
[1748081274252,41.15923,2554.7,2554.6,0.08136308]
[1748081277861,0.78269,2554.5,2554.4,1.3076]
[1748081278258,3.99049,2554.5,2554.4,1.3076]
[1748081281661,0.78275,2554.3,2554.2,0.00586682]
[1748081281854,0.78275,2554.3,2554.2,1.34756682]
[1748081283259,18.7098,2554.5,2554.2,1.34756682]
[1748081283452,18.40075,2554.4,2554.3,0.78273]
[1748081284660,0.78275,2554.3,2554.2,2.13032682]
[1748081285161,0.78275,2554.3,2554.2,1.34756682]
[1748081285553,0.78275,2554.3,2554.2,1.42306308]
[1748081286361,0.78275,2554.3,2554.2,0.08136308]
[1748081286561,2.15995,2554.3,2554.2,0.08136308]
[1748081286761,2.84225,2554.3,2554.2,0.08136308]
[1748081287659,2.15995,2554.3,2554.2,0.08136308]
[1748081293659,0.78275,2554.3,2554.2,0.08136308]
[1748081296664,2.05695,2554.3,2554.2,0.08136308]
[1748081297468,4.39029418,2554.3,2554.2,0.08136308]
[1748081299670,2.05695,2554.3,2554.2,0.08136308]
[1748081300471,33.90875,2554.3,2554.2,0.08136308]
[1748081301172,35.25925,2554.3,2554.2,0.08136308]
[1748081301972,41.15725,2554.3,2554.2,0.08136308]
[1748081306970,41.80481084,2554.3,2554.2,0.08136308]
[1748081307276,0.78287,2553.9,2553.8,0.6376]
[1748081307577,0.78296,2553.6,2553.5,0.69583585]
[1748081307871,21.61176,2553.6,2553.5,1.99043585]
[1748081308573,37.11776,2553.6,2553.5,1.2946]
[1748081309773,0.783,2553.5,2553.4,0.658]
[1748081309972,2.139,2553.5,2553.4,0.658]
[1748081310177,0.78303,2553.4,2553.3,0.66326682]
[1748081310376,3.21366682,2553.6,2553.5,0.783]
[1748081310676,17.62686682,2553.6,2553.5,0.783]
[1748081310972,0.00586682,2553.6,2553.5,5.783]
[1748081311175,19.95476597,2553.8,2553.7,0.78293]
[1748081311673,19.95476597,2553.8,2553.7,5.78293]
[1748081312469,17.621,2553.8,2553.7,5.78293]
[1748081313170,17.621,2553.8,2553.7,7.17763]
[1748081313377,18.4039,2553.8,2553.7,1.3947]
[1748081314278,18.4039,2553.8,2553.7,2.17763]
[1748081314472,18.4039,2553.8,2553.7,2.83273]
[1748081314674,18.4039,2553.8,2553.7,2.0498]
[1748081315073,17.621,2553.8,2553.7,2.90822626]
[1748081317781,0.00586682,2554.0,2553.7,7.12529626]
[1748081318080,17.622,2553.8,2553.7,0.73059626]
[1748081318571,17.622,2553.8,2553.7,5.73059626]
[1748081318872,17.622,2553.8,2553.7,6.51352626]
[1748081319368,17.622,2553.8,2553.7,1.51352626]
[1748081322984,17.622,2553.8,2553.7,36.61352626]
[1748081323982,18.4049,2553.8,2553.7,0.07549626]
[1748081324181,24.3658,2553.8,2553.7,0.07549626]
[1748081327687,24.49063241,2553.8,2553.7,0.07549626]
[1748081330086,39.99263241,2553.8,2553.7,0.07549626]
[1748081330784,40.968033,2553.8,2553.7,0.07549626]
[1748081330989,0.783,2553.5,2553.4,3.50161]
[1748081331286,0.783,2553.5,2553.4,2.7186]
[1748081332490,0.78298,2553.6,2553.4,2.7186]
[1748081332695,18.406,2553.5,2553.4,3.50163]
[1748081333286,18.406,2553.5,2553.4,2.7186]
[1748081335505,18.406,2553.5,2553.4,2.0239]
[1748081335798,18.406,2553.5,2553.4,1.3471]
[1748081336193,19.7316,2553.5,2553.4,1.3471]
[1748081338597,0.78303,2553.4,2553.3,0.00586682]
[1748081338799,2.81243,2553.4,2553.3,0.00586682]
[1748081340598,3.2078,2553.5,2553.4,0.78303]
[1748081340900,20.8318,2553.5,2553.4,2.08433]
[1748081341700,3.2078,2553.5,2553.4,2.08433]
[1748081341999,18.407,2553.5,2553.4,2.08433]
[1748081342706,1.43324368,2553.6,2553.5,0.783]
[1748081342903,19.05724368,2553.6,2553.5,2.1487]
[1748081343106,19.05724368,2553.6,2553.5,1.3657]
[1748081344008,19.05724368,2553.6,2553.5,2.1487]
[1748081344306,18.40699,2553.6,2553.5,2.1487]
[1748081346113,0.78299,2553.6,2553.5,2.1487]
[1748081346313,18.40699,2553.6,2553.5,2.1487]
[1748081346907,0.65025368,2553.7,2553.6,0.78296]
[1748081347108,18.27425368,2553.7,2553.6,0.78296]
[1748081347312,18.27425368,2553.7,2553.6,1.48106]
[1748081347612,0.65025368,2553.7,2553.6,1.48106]
[1748081347814,0.65025368,2553.7,2553.6,6.48106]
[1748081348716,0.65025368,2553.7,2553.6,7.17689585]
[1748081349314,0.65025368,2553.7,2553.6,42.27689585]
[1748081350113,0.65025368,2553.7,2553.6,37.27689585]
[1748081351014,0.65025368,2553.7,2553.6,36.58106]
[1748081353214,0.65025368,2553.7,2553.6,37.86956]
[1748081359216,17.62886682,2554.0,2553.9,0.78287]
[1748081360108,0.00586682,2554.0,2553.9,0.78287]
[1748081360309,0.65025368,2554.1,2554.0,0.78284]
[1748081360609,3.68e-06,2554.1,2554.0,0.78284]
[1748081360815,3.68e-06,2554.1,2554.0,7.80114]
[1748081361210,3.68e-06,2554.1,2554.0,42.90114]
[1748081362017,3.68e-06,2554.1,2554.0,44.2929238]
[1748081363514,3.68e-06,2554.1,2554.0,43.82577333]
[1748081363914,0.00586682,2554.3,2554.2,0.78278]
[1748081364116,0.00586682,2554.3,2554.2,19.48458]
[1748081364518,0.00586682,2554.3,2554.2,20.12658]
[1748081365420,0.00586682,2554.3,2554.2,21.44968]
[1748081366319,0.00586682,2554.3,2554.2,21.76479918]
[1748081367221,0.00586682,2554.3,2554.2,21.44968]
[1748081369018,1.3665,2554.6,2554.5,0.78269]
[1748081369320,18.9835,2554.6,2554.5,0.78269]
[1748081370327,18.9835,2554.6,2554.2,3.2078]
[1748081370328,0.78275,2554.3,2554.2,3.2078]
[1748081370512,0.78275,2554.3,2554.2,3.99058]
[1748081371521,0.78278,2554.2,2554.1,0.78279]
[1748081371823,2.15107,2554.3,2554.2,0.78278]
[1748081374626,0.78279,2554.2,2554.1,0.78279]
[1748081374820,2.07089,2554.2,2554.1,0.78279]
[1748081376126,0.78287,2553.9,2553.8,3.90053978]
[1748081376330,21.60767,2553.9,2553.8,0.69273978]
[1748081376925,24.26617,2553.9,2553.8,0.69273978]
[1748081377126,0.78293,2553.7,2553.6,0.78295]
[1748081377934,0.78292,2553.8,2553.7,0.78292]
[1748081378226,2.09342,2553.8,2553.7,0.78292]
[1748081378531,0.78294,2553.7,2553.6,0.78294]
[1748081378720,2.09344,2553.7,2553.6,0.78294]
[1748081381226,1.3105,2553.7,2553.6,0.78294]
[1748081382229,2.09343,2553.7,2553.6,0.78294]
[1748081382531,4.5782,2553.9,2553.8,0.7829]
[1748081382728,24.35337,2553.9,2553.8,0.7829]
[1748081382919,0.78294,2553.7,2553.6,0.78294]
[1748081383532,2.15623,2553.8,2553.7,0.78293]
[1748081383830,0.78293,2553.8,2553.7,0.78293]
[1748081384530,5.36109,2553.9,2553.8,0.7829]
[1748081384734,22.1982,2553.9,2553.8,0.7829]
[1748081384934,3.2078,2553.9,2553.8,0.7829]
[1748081385229,17.62,2554.3,2554.2,0.78278]
[1748081385418,1.365,2554.5,2554.3,0.78275]
[1748081385624,18.985,2554.5,2554.3,0.78275]
[1748081386024,1.365,2554.5,2554.3,2.10695]
[1748081386330,0.97540059,2554.4,2554.3,2.10695]
[1748081389828,4.50551396,2554.7,2554.5,0.78267]
[1748081389829,3.99044,2554.7,2554.5,0.78267]
[1748081390029,17.619,2554.6,2554.5,0.78267]
[1748081390630,3.2078,2554.7,2554.6,0.78266]
[1748081390825,17.619,2554.7,2554.6,0.78266]
[1748081391128,18.40163,2554.7,2554.6,0.78266]
[1748081392726,18.40163,2554.7,2554.5,2.13887]
[1748081392928,0.78266,2554.6,2554.5,1.3562]
[1748081393131,0.7827,2554.5,2554.3,0.07549626]
[1748081393629,0.78268,2554.6,2554.4,0.7827]
[1748081393832,0.78269,2554.6,2554.4,0.7827]
[1748081394128,0.78269,2554.6,2554.3,1.36309626]
[1748081394331,0.78269,2554.6,2554.5,0.78269]
[1748081399435,2.05559,2554.6,2554.5,0.78269]
[1748081402141,19.67259,2554.6,2554.5,0.78269]
[1748081405342,0.78269,2554.6,2554.5,0.78269]
[1748081405644,18.39969,2554.6,2554.5,0.78269]
[1748081406344,18.39969,2554.6,2554.5,0.85818626]
[1748081406845,18.39969,2554.6,2554.5,0.07549626]
[1748081407144,19.72969,2554.6,2554.5,0.07549626]
[1748081408845,19.72969,2554.6,2554.5,0.85818626]
[1748081409046,18.947,2554.6,2554.5,0.85818626]
[1748081409246,17.617,2554.6,2554.5,0.85818626]
[1748081409649,3.2078,2554.7,2554.6,0.78266]
[1748081409840,20.8248,2554.7,2554.6,2.07046]
[1748081410349,21.60743,2554.7,2554.6,2.07046]
[1748081410544,20.8248,2554.7,2554.6,2.76166]
[1748081410939,20.8248,2554.7,2554.6,3.45156]
[1748081411549,21.60743,2554.7,2554.6,3.45156]
[1748081411944,20.8248,2554.7,2554.6,3.45156]
[1748081412645,3.2078,2554.7,2554.6,3.45156]
[1748081412849,20.8248,2554.7,2554.6,3.45156]
[1748081413647,3.2078,2554.7,2554.6,3.45156]
[1748081413848,20.8238,2554.7,2554.6,3.45156]